fUST/lending_fUST_20240805
["ID","MTS","AMOUNT","RATE_DAILY","PERIOD"]
[334184564,1722816647670,-500.0,0.00013972,2]
[334184565,1722816647680,-500.0,0.00013972,2]
[334184566,1722816647689,-500.0,0.00013972,2]
[334184567,1722816647699,-318.92863212,0.00013972,2]
[334184568,1722816647708,-500.0,0.00013972,2]
[334184569,1722816647717,-500.0,0.00013972,2]
[334184570,1722816647726,-500.0,0.00013972,2]
[334184571,1722816647735,-500.0,0.00013972,2]
[334184572,1722816647744,-500.0,0.00013972,2]
[334184573,1722816647754,-500.0,0.00013972,2]
[334184574,1722816647763,-500.0,0.00013972,2]
[334184575,1722816647772,-500.0,0.00013972,2]
[334184576,1722816647782,-500.0,0.00013972,2]
[334184577,1722816647791,-500.0,0.00013972,2]
[334184578,1722816647800,-500.0,0.00013972,2]
[334184579,1722816647815,-500.0,0.00013972,2]
[334184580,1722816647824,-500.0,0.00013972,2]
[334184581,1722816647833,-500.0,0.00013972,2]
[334184582,1722816647842,-500.0,0.00013972,2]
[334184583,1722816647953,-500.0,0.00013972,2]
[334184584,1722816647963,-578.93,0.00013972,2]
[334184585,1722816647973,-500.0,0.00013972,2]
[334184586,1722816647982,-500.0,0.00013972,2]
[334184587,1722816647991,-500.0,0.00013972,2]
[334184588,1722816648001,-500.0,0.00013972,2]
[334184589,1722816648011,-500.0,0.00013972,2]
[334184590,1722816648020,-500.0,0.00013972,2]
[334184591,1722816648029,-500.0,0.00013972,2]
[334184592,1722816648039,-500.0,0.00013972,2]
[334184593,1722816648049,-500.0,0.00013972,2]
[334184594,1722816648063,-500.0,0.00013972,2]
[334184595,1722816648072,-500.0,0.00013972,2]
[334184596,1722816648082,-500.0,0.00013972,2]
[334184597,1722816648094,-500.0,0.00013972,2]
[334184598,1722816648104,-500.0,0.00013972,2]
[334184599,1722816648114,-500.0,0.00013972,2]
[334184600,1722816648123,-500.0,0.00013972,2]
[334184601,1722816648133,-500.0,0.00013972,2]
[334184602,1722816648144,-500.0,0.00013972,2]
[334184603,1722816648154,-500.0,0.00013972,2]
[334184604,1722816648164,-500.0,0.00013972,2]
[334184605,1722816648175,-500.0,0.00013972,2]
[334184606,1722816648187,-500.0,0.00013972,2]
[334184607,1722816648197,-500.0,0.00013972,2]
[334184608,1722816648206,-500.0,0.00013972,2]
[334184609,1722816648215,-500.0,0.00013972,2]
[334184610,1722816648226,-500.0,0.00013972,2]
[334184611,1722816648236,-500.0,0.00013972,2]
[334184612,1722816648246,-500.0,0.00013972,2]
[334184613,1722816648256,-500.0,0.00013972,2]
[334184614,1722816648266,-500.0,0.00013972,2]
[334184615,1722816648277,-500.0,0.00013972,2]
[334184616,1722816648289,-500.0,0.00013972,2]
[334184617,1722816648298,-500.0,0.00013972,2]
[334184618,1722816648313,-500.0,0.00013972,2]
[334184619,1722816648322,-500.0,0.00013972,2]
[334184620,1722816648332,-500.0,0.00013972,2]
[334184621,1722816648342,-500.0,0.00013972,2]
[334184622,1722816648352,-500.0,0.00013972,2]
[334184623,1722816648361,-500.0,0.00013972,2]
[334184624,1722816648370,-500.0,0.00013972,2]
[334184625,1722816648379,-522.45691885,0.00013972,2]
[334184626,1722816648390,-500.0,0.00013972,2]
[334184627,1722816648400,-500.0,0.00013972,2]
[334184628,1722816648410,-500.0,0.00013972,2]
[334184629,1722816648420,-500.0,0.00013972,2]
[334184630,1722816648430,-500.0,0.00013972,2]
[334184631,1722816648440,-500.0,0.00013972,2]
[334184632,1722816648451,-500.0,0.00013972,2]
[334184633,1722816648461,-500.0,0.00013972,2]
[334184634,1722816648471,-865.71,0.00013972,2]
[334184635,1722816648481,-500.0,0.00013972,2]
[334184636,1722816648491,-500.0,0.00013972,2]
[334184637,1722816648501,-500.0,0.00013972,2]
[334184638,1722816648511,-500.0,0.00013972,2]
[334184639,1722816648521,-500.0,0.00013972,2]
[334184640,1722816648531,-500.0,0.00013972,2]
[334184641,1722816648541,-500.0,0.00013972,2]
[334184642,1722816648553,-500.0,0.00013972,2]
[334184643,1722816648565,-500.0,0.00013972,2]
[334184644,1722816648574,-500.0,0.00013972,2]
[334184645,1722816648584,-224.98332313,0.00013972,2]
[334184646,1722816648594,-500.0,0.00013972,2]
[334184647,1722816648605,-500.0,0.00013972,2]
[334184648,1722816648615,-500.0,0.00013972,2]
[334184649,1722816648624,-500.0,0.00013972,2]
[334184650,1722816648634,-500.0,0.00013972,2]
[334184651,1722816648645,-500.0,0.00013972,2]
[334184652,1722816648655,-500.0,0.00013972,2]
[334184653,1722816648665,-830.29,0.00013972,2]
[334184654,1722816648675,-500.0,0.00013972,2]
[334184655,1722816648686,-500.0,0.00013972,2]
[334184656,1722816648696,-500.0,0.00013972,2]
[334184657,1722816648706,-500.0,0.00013972,2]
[334184658,1722816648720,-500.0,0.00013972,2]
[334184659,1722816648730,-500.0,0.00013972,2]
[334184660,1722816648741,-1362.24,0.00013999,2]
[334184661,1722816648750,-1091.57771247,0.00014,2]
[334184662,1722816648759,-8283.18837417,0.00014146,2]
[334184663,1722816648770,-500.0,0.00014235,2]
[334184664,1722816648779,-2768.47268025,0.00014236,2]
[334184665,1722816648926,-289.5,0.00014236,2]
[334184666,1722816648938,-2204.13472168,0.00014236,2]
[334184759,1722817734784,276.2,0.00025,60]
[334184806,1722817788371,3564.26584448,0.00025,60]
[334184895,1722817832757,-300.0,9.998e-05,2]
[334184897,1722817832766,-300.0,9.998e-05,2]
[334184899,1722817832776,-300.99621399,9.999e-05,2]
[334184901,1722817832785,-154.83742071,9.999e-05,2]
[334184903,1722817832797,-463.95574895,9.999e-05,2]
[334184906,1722817832815,-58.30437479,9.999e-05,2]
[334184908,1722817832825,-494.23715236,9.999e-05,2]
[334184910,1722817832834,-519.59956575,9.999e-05,2]
[334184912,1722817832844,-250.3410689,9.999e-05,2]
[334184914,1722817832854,-156.61103376,9.999e-05,2]
[334184915,1722817832863,-533.92328189,9.999e-05,2]
[334184916,1722817832872,-256.64294795,9.999e-05,2]
[334184917,1722817832882,-403.74175046,9.999e-05,2]
[334184918,1722817832891,-727.52933543,9.999e-05,2]
[334184919,1722817832900,-160.1642143,9.999e-05,2]
[334184920,1722817832910,-205.1880395,9.999e-05,2]
[334184921,1722817832919,-942.61257937,9.999e-05,2]
[334184922,1722817832928,-603.79164827,9.999e-05,2]
[334184923,1722817832938,-532.14086008,9.999e-05,2]
[334184925,1722817832947,-163.06705816,9.999e-05,2]
[334184927,1722817832956,-154.83742071,9.999e-05,2]
[334184929,1722817832965,-154.83742071,9.999e-05,2]
[334184931,1722817832974,-206.2507991,9.999e-05,2]
[334184933,1722817832984,-413.91232311,9.999e-05,2]
[334184935,1722817832993,-480.16851972,9.999e-05,2]
[334185178,1722817837764,-213.94088018,9.999e-05,2]
[334185179,1722817837774,-60.19911982,9.999e-05,2]
[334185180,1722817837786,-97.61161831,9.999e-05,2]
[334185181,1722817837801,-845.47187628,9.999e-05,2]
[334185182,1722817837812,-196.46943428,9.999e-05,2]
[334185183,1722817837824,-159.24043179,9.999e-05,2]
[334185184,1722817837835,-154.83742071,9.999e-05,2]
[334185185,1722817837844,-154.83742071,9.999e-05,2]
[334185186,1722817837854,-154.83742071,9.999e-05,2]
[334185187,1722817837863,-201.4758121,9.999e-05,2]
[334185188,1722817837872,-288.53209712,9.999e-05,2]
[334185189,1722817837882,-779.66389887,9.999e-05,2]
[334185190,1722817837891,-156.73199194,9.999e-05,2]
[334185191,1722817837900,-154.83742071,9.999e-05,2]
[334185192,1722817837909,-342.05014288,9.999e-05,2]
[334185193,1722817837919,-568.56884199,9.999e-05,2]
[334185194,1722817837929,-244.84557874,9.999e-05,2]
[334185195,1722817837938,-309.5047931,9.999e-05,2]
[334185196,1722817837951,-188.2335741,9.999e-05,2]
[334185197,1722817837962,-226.1384885,9.999e-05,2]
[334185198,1722817837972,-180.4790292,9.999e-05,2]
[334185199,1722817837981,-209.18351946,9.999e-05,2]
[334185200,1722817837992,-240.80307792,9.999e-05,2]
[334185201,1722817838003,-319.72766707,9.999e-05,2]
[334185203,1722817838013,-543.08033697,9.999e-05,2]
[334185205,1722817838023,-155.23440676,9.999e-05,2]
[334185207,1722817838033,-197.17711139,9.999e-05,2]
[334185209,1722817838042,-807.83941195,9.999e-05,2]
[334185210,1722817838056,-523.06806918,9.999e-05,2]
[334185212,1722817838068,-506.48190828,9.999e-05,2]
[334185214,1722817838077,-600.8534117,9.999e-05,2]
[334185215,1722817838086,-174.52933502,9.999e-05,2]
[334185217,1722817838095,-154.90559812,9.999e-05,2]
[334185219,1722817838105,-183.10678503,9.999e-05,2]
[334185221,1722817838115,-155.04520691,9.999e-05,2]
[334185222,1722817838124,-253.58130554,9.999e-05,2]
[334185224,1722817838134,-506.48190828,9.999e-05,2]
[334185226,1722817838143,-304.49275309,9.999e-05,2]
[334185227,1722817838152,-307.69100047,9.999e-05,2]
[334185228,1722817838161,-154.83742071,9.999e-05,2]
[334185229,1722817838171,-182.92546344,9.999e-05,2]
[334185230,1722817838179,-154.83742071,9.999e-05,2]
[334185231,1722817838189,-166.07680533,9.999e-05,2]
[334185232,1722817838198,-209.86849569,9.999e-05,2]
[334185233,1722817838207,-156.05197447,9.999e-05,2]
[334185234,1722817838217,-164.41333768,9.999e-05,2]
[334185235,1722817838227,-412.94081029,0.0001,2]
[334185236,1722817838237,-287.77266661,0.0001,2]
[334185237,1722817838247,-24900.0,0.00010179,2]
[334185238,1722817838257,-212.5,0.00010874,2]
[334185239,1722817838267,-212.5,0.00010903,2]
[334185240,1722817838277,-212.5,0.00010933,2]
[334185241,1722817838286,-779.41,0.00010959,2]
[334185242,1722817838295,-864.02,0.00010959,2]
[334185243,1722817838315,-720.01,0.00010959,2]
[334185244,1722817838325,-600.01,0.00010959,2]
[334185245,1722817838336,-600.01,0.00010959,2]
[334185246,1722817838345,-400.01,0.00010959,2]
[334185247,1722817838355,-333.34,0.00010959,2]
[334185248,1722817838364,-277.78,0.00010959,2]
[334185249,1722817838374,-231.49,0.00010959,2]
[334185250,1722817838383,-192.9,0.00010959,2]
[334185251,1722817838394,-160.75,0.00010959,2]
[334185252,1722817838403,-212.5,0.00010963,2]
[334185253,1722817838413,-212.5,0.00010993,2]
[334185254,1722817838422,-420.0,0.00010998,2]
[334185255,1722817838432,-420.0,0.00010998,2]
[334185256,1722817838442,-212.5,0.00011023,2]
[334185257,1722817838453,-212.5,0.00011053,2]
[334185258,1722817838464,-212.5,0.00011083,2]
[334185259,1722817838474,-212.5,0.00011112,2]
[334185260,1722817838484,-212.5,0.00011142,2]
[334185261,1722817838604,-212.5,0.00011172,2]
[334185262,1722817838614,-212.5,0.00011202,2]
[334185263,1722817838624,-212.5,0.00011232,2]
[334185264,1722817838634,-212.5,0.00011262,2]
[334185265,1722817838644,-212.5,0.00011291,2]
[334185266,1722817838653,-212.5,0.00011321,2]
[334185267,1722817838662,-212.5,0.00011351,2]
[334185268,1722817838672,-212.5,0.00011381,2]
[334185269,1722817838681,-212.5,0.00011411,2]
[334185270,1722817838691,-212.5,0.00011441,2]
[334185271,1722817838700,-587.0,0.00012098,2]
[334185272,1722817838710,-587.0,0.00012098,2]
[334185273,1722817838720,-823.0,0.00013307,2]
[334185274,1722817838729,-823.0,0.00013307,2]
[334185275,1722817838739,-1530.92773243,0.00013561,2]
[334185276,1722817838748,-1072.7691087,0.0001357,2]
[334185298,1722817839683,-458.1586237,0.0001357,2]
[334185299,1722817839694,-710.4161963,0.0001358,2]
[334185314,1722817841409,-849.39914621,9.999e-05,2]
[334185315,1722817841419,-820.5115361,0.0001358,2]
[334185316,1722817841429,-1530.9277324,0.00013589,2]
[334185317,1722817841438,-932.00149053,0.00013596,2]
[334185318,1722817841450,-1530.9277324,0.00013598,2]
[334185319,1722817841462,-27529.02641921,0.000136,2]
[334185320,1722817841471,-17862.83287435,0.00013651,2]
[334185321,1722817841484,-7475.85378945,0.00013651,2]
[334185322,1722817841494,-26626.59739291,0.00013661,2]
[334185323,1722817841504,-14512.10135864,0.00013688,2]
[334185324,1722817841517,-1365.82188577,0.00013688,2]
[334185325,1722817841529,-85476.82341059,0.00013688,2]
[334185326,1722817841539,-998.60195726,0.00013697,2]
[334185327,1722817841548,-2508.73,0.00013697,2]
[334185328,1722817841563,-7913.3589167,0.00013698,5]
[334185329,1722817841572,-452.20313772,0.00013698,2]
[334185330,1722817841582,-503.90954996,0.00013698,2]
[334185331,1722817841591,-500.0,0.00013698,2]
[334185332,1722817841600,-250.0,0.00013698,2]
[334185333,1722817841609,-500.0,0.00013698,2]
[334185334,1722817841618,-500.0,0.00013698,2]
[334185335,1722817841629,-396.37302777,0.00013698,2]
[334185363,1722817842895,-154.83742071,9.999e-05,2]
[334185364,1722817842905,-103.62697223,0.00013698,2]
[334185365,1722817842916,-49.2171693,0.00013698,2]
[334185368,1722817842954,-450.7828307,0.00013698,2]
[334185370,1722817842963,-500.0,0.00013698,2]
[334185372,1722817842972,-500.0,0.00013698,2]
[334185374,1722817842982,-500.0,0.00013698,2]
[334185376,1722817842991,-504.33677994,0.00013698,2]
[334185377,1722817843000,-500.0,0.00013698,2]
[334185378,1722817843010,-500.0,0.00013698,2]
[334185379,1722817843020,-500.0,0.00013698,2]
[334185380,1722817843030,-500.0,0.00013698,2]
[334185381,1722817843041,-500.0,0.00013698,2]
[334185382,1722817843057,-500.0,0.00013698,2]
[334185383,1722817843067,-500.0,0.00013698,2]
[334185384,1722817843076,-500.0,0.00013698,2]
[334185385,1722817843086,-500.0,0.00013698,2]
[334185386,1722817843097,-500.0,0.00013698,2]
[334185387,1722817843107,-500.0,0.00013698,2]
[334185388,1722817843116,-500.0,0.00013698,2]
[334185389,1722817843126,-511.22624464,0.00013698,2]
[334185390,1722817843137,-500.0,0.00013698,2]
[334185391,1722817843147,-504.87801131,0.00013698,2]
[334185392,1722817843156,-500.0,0.00013698,2]
[334185393,1722817843166,-500.0,0.00013698,2]
[334185394,1722817843176,-154.74467129,0.00013698,2]
[334185395,1722817843186,-500.0,0.00013698,2]
[334185396,1722817843196,-500.0,0.00013698,2]
[334185397,1722817843206,-229.2089436,0.00013698,2]
[334185398,1722817843216,-507.9354698,0.00013698,2]
[334185399,1722817843226,-500.0,0.00013698,2]
[334185400,1722817843235,-500.0,0.00013698,2]
[334185401,1722817843245,-500.0,0.00013698,2]
[334185402,1722817843254,-500.0,0.00013698,2]
[334185403,1722817843264,-500.0,0.00013698,2]
[334185404,1722817843274,-154.82195475,0.00013698,2]
[334185405,1722817843284,-500.0,0.00013698,2]
[334185406,1722817843293,-500.0,0.00013698,2]
[334185407,1722817843308,-500.0,0.00013698,2]
[334185408,1722817843318,-500.0,0.00013698,2]
[334185409,1722817843328,-500.0,0.00013698,2]
[334185410,1722817843338,-500.0,0.00013698,2]
[334185411,1722817843348,-500.0,0.00013698,2]
[334185412,1722817843358,-507.79525928,0.00013698,2]
[334185413,1722817843368,-512.56776529,0.00013698,2]
[334185414,1722817843378,-500.0,0.00013698,2]
[334185415,1722817843388,-500.0,0.00013698,2]
[334185416,1722817843398,-500.0,0.00013698,2]
[334185417,1722817843408,-500.0,0.00013698,2]
[334185418,1722817843418,-500.0,0.00013698,2]
[334185419,1722817843428,-229.27754662,0.00013698,2]
[334185420,1722817843438,-533.34399828,0.00013698,2]
[334185421,1722817843451,-500.0,0.00013698,2]
[334185422,1722817843463,-308.57002669,0.00013698,2]
[334185423,1722817843473,-500.0,0.00013698,2]
[334185424,1722817843482,-500.0,0.00013698,2]
[334185425,1722817843492,-500.0,0.00013698,2]
[334185426,1722817843502,-500.0,0.00013698,2]
[334185427,1722817843512,-500.0,0.00013698,2]
[334185428,1722817843521,-500.0,0.00013698,2]
[334185429,1722817843531,-500.0,0.00013698,2]
[334185430,1722817843544,-500.0,0.00013698,2]
[334185431,1722817843560,-500.0,0.00013698,2]
[334185432,1722817843570,-513.48660467,0.00013698,2]
[334185433,1722817843580,-500.0,0.00013698,2]
[334185434,1722817843590,-500.0,0.00013698,2]
[334185435,1722817843600,-500.0,0.00013698,2]
[334185436,1722817843610,-471.39460102,0.00013698,2]
[334185437,1722817843620,-500.0,0.00013698,2]
[334185438,1722817843630,-500.0,0.00013698,2]
[334185439,1722817843640,-500.0,0.00013698,2]
[334185440,1722817843650,-500.0,0.00013698,2]
[334185441,1722817843659,-500.0,0.00013698,2]
[334185442,1722817843669,-500.0,0.00013698,2]
[334185443,1722817843678,-500.0,0.00013698,2]
[334185444,1722817843688,-500.0,0.00013698,2]
[334185445,1722817843698,-500.0,0.00013698,2]
[334185446,1722817843708,-500.0,0.00013698,2]
[334185447,1722817843718,-500.0,0.00013698,2]
[334185448,1722817843727,-500.0,0.00013698,2]
[334185449,1722817843737,-500.0,0.00013698,2]
[334185450,1722817843746,-500.0,0.00013698,2]
[334185451,1722817843755,-500.0,0.00013698,2]
[334185452,1722817843765,-500.0,0.00013698,2]
[334185453,1722817843774,-500.0,0.00013698,2]
[334185454,1722817843784,-500.0,0.00013698,2]
[334185455,1722817843794,-319.48608188,0.00013698,2]
[334185456,1722817843807,-500.0,0.00013698,2]
[334185457,1722817843816,-500.0,0.00013698,2]
[334185458,1722817843825,-503.1701449,0.00013698,2]
[334185459,1722817843836,-500.0,0.00013698,2]
[334185460,1722817843846,-504.20177658,0.00013698,2]
[334185461,1722817843858,-509.83711639,0.00013698,2]
[334185462,1722817843869,-502.50149679,0.00013698,2]
[334185463,1722817843879,-500.0,0.00013698,2]
[334185464,1722817843889,-500.0,0.00013698,2]
[334185465,1722817843898,-502.70942991,0.00013698,2]
[334185466,1722817843908,-500.0,0.00013698,2]
[334185467,1722817843918,-500.0,0.00013698,2]
[334185468,1722817843928,-500.0,0.00013698,2]
[334185469,1722817843939,-500.0,0.00013698,2]
[334185470,1722817843948,-500.0,0.00013698,2]
[334185471,1722817843958,-500.0,0.00013698,2]
[334185472,1722817843968,-500.0,0.00013698,2]
[334185473,1722817843978,-500.0,0.00013698,2]
[334185474,1722817843987,-500.0,0.00013698,2]
[334185475,1722817843997,-500.0,0.00013698,2]
[334185476,1722817844006,-500.0,0.00013698,2]
[334185477,1722817844016,-500.0,0.00013698,2]
[334185478,1722817844026,-446.84523942,0.00013698,2]
[334185479,1722817844035,-500.0,0.00013698,2]
[334185480,1722817844045,-505.58056084,0.00013698,2]
[334185481,1722817844058,-500.0,0.00013698,2]
[334185482,1722817844070,-500.0,0.00013698,2]
[334185483,1722817844079,-500.0,0.00013698,2]
[334185484,1722817844088,-501.7411033,0.00013698,2]
[334185485,1722817844098,-454.15113139,0.00013698,2]
[334185486,1722817844107,-524.43319273,0.00013698,2]
[334185487,1722817844117,-500.0,0.00013698,2]
[334185488,1722817844126,-255.14315066,0.00013698,2]
[334185489,1722817844136,-500.0,0.00013698,2]
[334185490,1722817844145,-500.0,0.00013698,2]
[334185491,1722817844155,-500.0,0.00013698,2]
[334185492,1722817844163,-500.0,0.00013698,2]
[334185493,1722817844173,-500.0,0.00013698,2]
[334185494,1722817844182,-500.0,0.00013698,2]
[334185495,1722817844191,-500.0,0.00013698,2]
[334185496,1722817844201,-500.0,0.00013698,2]
[334185497,1722817844210,-500.0,0.00013698,2]
[334185498,1722817844219,-500.0,0.00013698,2]
[334185499,1722817844229,-500.0,0.00013698,2]
[334185500,1722817844238,-500.0,0.00013698,2]
[334185501,1722817844247,-500.0,0.00013698,2]
[334185502,1722817844256,-500.0,0.00013698,2]
[334185503,1722817844267,-500.0,0.00013698,2]
[334185504,1722817844277,-500.0,0.00013698,2]
[334185505,1722817844289,-519.49525903,0.00013698,2]
[334185506,1722817844299,-500.0,0.00013698,2]
[334185507,1722817844313,-500.0,0.00013698,2]
[334185508,1722817844322,-500.0,0.00013698,2]
[334185509,1722817844331,-500.0,0.00013698,2]
[334185510,1722817844340,-500.0,0.00013698,2]
[334185511,1722817844451,-282.7537234,0.00013698,2]
[334185512,1722817844461,-515.32158002,0.00013698,2]
[334185513,1722817844470,-500.0,0.00013698,2]
[334185514,1722817844479,-487.57678047,0.00013698,2]
[334185515,1722817844488,-500.0,0.00013698,2]
[334185516,1722817844498,-500.0,0.00013698,2]
[334185517,1722817844507,-500.0,0.00013698,2]
[334185518,1722817844516,-500.0,0.00013698,2]
[334185519,1722817844527,-304.08146508,0.00013698,2]
[334185520,1722817844536,-500.0,0.00013698,2]
[334185521,1722817844545,-500.0,0.00013698,2]
[334185522,1722817844557,-500.0,0.00013698,2]
[334185523,1722817844567,-500.0,0.00013698,2]
[334185524,1722817844579,-510.76347615,0.00013698,2]
[334185525,1722817844591,-556.67262246,0.00013698,2]
[334185526,1722817844603,-500.0,0.00013698,2]
[334185527,1722817844614,-500.0,0.00013698,2]
[334185528,1722817844626,-500.0,0.00013698,2]
[334185529,1722817844635,-500.0,0.00013698,2]
[334185530,1722817844645,-500.0,0.00013698,2]
[334185531,1722817844654,-500.0,0.00013698,2]
[334185532,1722817844663,-500.0,0.00013698,2]
[334185533,1722817844673,-500.0,0.00013698,2]
[334185534,1722817844682,-500.0,0.00013698,2]
[334185535,1722817844691,-500.0,0.00013698,2]
[334185536,1722817844700,-500.0,0.00013698,2]
[334185537,1722817844710,-500.0,0.00013698,2]
[334185538,1722817844719,-373.74386389,0.00013698,2]
[334185539,1722817844728,-500.0,0.00013698,2]
[334185540,1722817844737,-500.0,0.00013698,2]
[334185541,1722817844747,-500.0,0.00013698,2]
[334185542,1722817844756,-500.0,0.00013698,2]
[334185543,1722817844765,-500.0,0.00013698,2]
[334185544,1722817844775,-503.20124971,0.00013698,2]
[334185545,1722817844785,-500.0,0.00013698,2]
[334185546,1722817844794,-500.0,0.00013698,2]
[334185547,1722817844804,-500.0,0.00013698,2]
[334185548,1722817844813,-500.0,0.00013698,2]
[334185549,1722817844822,-500.0,0.00013698,2]
[334185550,1722817844831,-500.0,0.00013698,2]
[334185551,1722817844840,-500.0,0.00013698,2]
[334185552,1722817844850,-500.0,0.00013698,2]
[334185553,1722817844859,-500.0,0.00013698,2]
[334185554,1722817844869,-607.91,0.00013698,2]
[334185555,1722817844878,-500.0,0.00013698,2]
[334185556,1722817844887,-500.0,0.00013698,2]
[334185557,1722817844898,-500.0,0.00013698,2]
[334185558,1722817844907,-500.0,0.00013698,2]
[334185559,1722817844916,-500.0,0.00013698,2]
[334185560,1722817844925,-500.0,0.00013698,2]
[334185561,1722817844934,-500.0,0.00013698,2]
[334185562,1722817844944,-500.0,0.00013698,2]
[334185563,1722817844954,-500.0,0.00013698,2]
[334185564,1722817844963,-504.19979343,0.00013698,2]
[334185565,1722817844971,-500.0,0.00013698,2]
[334185566,1722817844981,-500.0,0.00013698,2]
[334185567,1722817844990,-500.0,0.00013698,2]
[334185568,1722817844999,-500.0,0.00013698,2]
[334185569,1722817845009,-500.0,0.00013698,2]
[334185570,1722817845018,-500.0,0.00013698,2]
[334185571,1722817845028,-500.0,0.00013698,2]
[334185572,1722817845038,-500.0,0.00013698,2]
[334185573,1722817845047,-500.0,0.00013698,2]
[334185574,1722817845060,-500.0,0.00013698,2]
[334185575,1722817845069,-500.0,0.00013698,2]
[334185576,1722817845079,-500.0,0.00013698,2]
[334185577,1722817845089,-200.78971945,0.00013698,2]
[334185578,1722817845099,-500.0,0.00013698,2]
[334185579,1722817845108,-500.0,0.00013698,2]
[334185580,1722817845117,-500.0,0.00013698,2]
[334185581,1722817845126,-2551.32,0.00013698,2]
[334185582,1722817845136,-500.0,0.00013698,2]
[334185583,1722817845145,-500.0,0.00013698,2]
[334185584,1722817845154,-349.80289992,0.00013698,2]
[334185585,1722817845163,-500.0,0.00013698,2]
[334185586,1722817845172,-1120.09,0.00013698,2]
[334185587,1722817845182,-500.0,0.00013698,2]
[334185588,1722817845191,-500.0,0.00013698,2]
[334185589,1722817845200,-500.0,0.00013698,2]
[334185590,1722817845210,-500.0,0.00013698,2]
[334185591,1722817845219,-500.0,0.00013698,2]
[334185592,1722817845229,-413.45485945,0.00013698,2]
[334185593,1722817845238,-500.0,0.00013698,2]
[334185594,1722817845248,-500.0,0.00013698,2]
[334185595,1722817845258,-500.0,0.00013698,2]
[334185596,1722817845267,-500.0,0.00013698,2]
[334185597,1722817845277,-500.0,0.00013698,2]
[334185598,1722817845286,-561.44881227,0.00013698,2]
[334185599,1722817845296,-500.0,0.00013698,2]
[334185600,1722817845307,-500.0,0.00013698,2]
[334185602,1722817845317,-500.0,0.00013698,2]
[334185604,1722817845326,-500.0,0.00013698,2]
[334185605,1722817845335,-265.0,0.00013698,2]
[334185607,1722817845344,-500.0,0.00013698,2]
[334185609,1722817845354,-500.0,0.00013698,2]
[334185611,1722817845363,-500.0,0.00013698,2]
[334185612,1722817845372,-500.0,0.00013698,2]
[334185613,1722817845382,-500.0,0.00013698,2]
[334185614,1722817845391,-500.0,0.00013698,2]
[334185615,1722817845400,-500.0,0.00013698,2]
[334185616,1722817845411,-500.0,0.00013698,2]
[334185617,1722817845422,-500.0,0.00013698,2]
[334185618,1722817845432,-500.0,0.00013698,2]
[334185619,1722817845444,-500.0,0.00013698,2]
[334185620,1722817845458,-547.63964332,0.00013698,2]
[334185621,1722817845467,-1438.76,0.00013698,2]
[334185622,1722817845477,-500.0,0.00013698,2]
[334185623,1722817845486,-500.0,0.00013698,2]
[334185624,1722817845497,-500.0,0.00013698,2]
[334185625,1722817845506,-500.0,0.00013698,2]
[334185627,1722817845515,-500.0,0.00013698,2]
[334185628,1722817845524,-500.0,0.00013698,2]
[334185629,1722817845534,-500.0,0.00013698,2]
[334185630,1722817845544,-500.0,0.00013698,2]
[334185631,1722817845558,-432.48504585,0.00013698,2]
[334185632,1722817845568,-500.0,0.00013698,2]